bitfinex-derivatives/quotes_SOLF0:USTF0_20250818
["timestamp","ask_amount","ask_price","bid_price","bid_amount"]
[1755518392779,14.18792887,181.44,181.43,0.04028343]
[1755518392985,17.10367269,181.44,181.43,3.02028343]
[1755518394888,17.10367269,181.44,181.43,0.04028343]
[1755518395086,17.10367269,181.44,181.43,3.02028343]
[1755518396690,17.10557488,181.44,181.43,3.02028343]
[1755518396984,17.10557488,181.44,181.43,0.04028343]
[1755518397190,2.93,181.43,181.38,2.98]
[1755518397489,5.84574382,181.39,181.38,2.98]
[1755518397787,14.33151191,181.39,181.38,2.98]
[1755518398489,11.40151191,181.39,181.38,2.98]
[1755518399690,11.41917777,181.39,181.38,2.98]
[1755518400389,11.41917777,181.39,181.21,11.0302]
[1755518400390,2.93,181.38,181.28,2.91574382]
[1755518400581,147.91343395,181.37,181.29,2.98]
[1755518400778,8.50343395,181.36,181.29,2.98]
[1755518400984,8.50343395,181.35,181.31,2.98]
[1755518401183,3.98575219,181.34,181.31,2.98]
[1755518401384,3.98575219,181.33,181.31,2.98]
[1755518401578,0.03944211,181.35,181.33,2.98]
[1755518401779,2.93,181.41,181.35,2.98]
[1755518401986,136.5,181.39,181.37,2.98]
[1755518402387,7.44876221,181.38,181.34,2.91574382]
[1755518402590,2.93,181.37,181.33,2.91574382]
[1755518402890,136.5,181.39,181.34,2.98]
[1755518403090,2.93,181.37,181.34,2.98]
[1755518403691,139.43,181.39,181.34,2.98]
[1755518403891,2.93,181.38,181.34,3.01526052]
[1755518404089,2.93,181.37,181.34,3.01526052]
[1755518404593,139.43,181.39,181.34,3.01526052]
[1755518404793,2.93,181.38,181.34,3.01526052]
[1755518405191,5.84574382,181.38,181.34,3.01526052]
[1755518405590,2.91574382,181.38,181.34,3.01526052]
[1755518405793,2.93,181.36,181.34,3.01526052]
[1755518406693,2.93,181.38,181.34,0.03526052]
[1755518406994,4.52029187,181.37,181.35,2.98]
[1755518407294,7.45029187,181.36,181.35,2.98]
[1755518407684,2.93,181.36,181.35,2.98]
[1755518407889,57.0,181.38,181.35,2.98]
[1755518408093,136.5,181.39,181.35,2.98]
[1755518410497,139.43,181.39,181.35,2.98]
[1755518412095,136.5,181.39,181.35,2.98]
[1755518412502,139.43,181.39,181.35,2.98]
[1755518413094,2.93,181.38,181.35,2.98]
[1755518413794,2.93,181.36,181.35,2.98]
[1755518413999,6.93514916,181.36,181.35,2.98]
[1755518414502,2.93,181.35,181.34,0.03526052]
[1755518414701,143.43514916,181.35,181.34,0.03526052]
[1755518414901,143.43514916,181.35,181.34,3.01526052]
[1755518415101,140.50514916,181.35,181.34,3.01526052]
[1755518415405,143.43514916,181.35,181.34,3.01526052]
[1755518415704,143.43514916,181.35,181.34,0.03526052]
[1755518417510,143.43514916,181.35,181.34,3.01526052]
[1755518417711,143.43514916,181.35,181.34,0.03526052]
[1755518418609,143.43514916,181.35,181.34,3.01526052]
[1755518418810,143.43514916,181.35,181.34,0.03526052]
[1755518420109,147.95290044,181.35,181.34,0.03526052]
[1755518420311,152.51151764,181.35,181.34,0.03526052]
[1755518420506,2.93,181.34,181.29,2.98]
[1755518420712,2.93,181.32,181.3,2.98]
[1755518420911,140.50514916,181.31,181.3,2.98]
[1755518421110,143.43514916,181.31,181.3,2.98]
[1755518422418,140.50514916,181.31,181.3,2.98]
[1755518422717,136.5,181.31,181.3,2.98]
[1755518423114,0.03477348,181.32,181.3,2.98]
[1755518423315,136.53477348,181.32,181.31,2.86]
[1755518423518,140.53482014,181.32,181.31,2.86]
[1755518424419,136.53477348,181.32,181.31,2.86]
[1755518426524,0.03477348,181.32,181.31,2.86]
[1755518427921,3.12477348,181.32,181.31,2.86]
[1755518428120,0.03477348,181.32,181.31,2.86]
[1755518432117,3.12477348,181.32,181.31,2.86]
[1755518433921,0.03477348,181.32,181.31,2.86]
[1755518435727,3.12477348,181.32,181.31,2.86]
[1755518436131,0.03477348,181.32,181.31,2.86]
[1755518436826,3.12477348,181.32,181.31,2.86]
[1755518438933,3.12477348,181.32,181.27,5.5133]
[1755518439127,3.12477348,181.32,181.29,2.86]
[1755518439530,3.12477348,181.32,181.3,2.86]
[1755518440031,3.09,181.31,181.3,2.86]
[1755518440231,3.12477348,181.32,181.3,2.86]
[1755518441233,0.03477348,181.32,181.3,2.86]
[1755518441425,3.09,181.31,181.26,151.05128209]
[1755518441631,0.03477348,181.32,181.26,151.05128209]
[1755518441828,0.03477348,181.32,181.28,5.5129]
[1755518442133,3.12477348,181.32,181.29,2.86]
[1755518443332,3.12477348,181.32,181.3,2.86]
[1755518443528,0.03477348,181.32,181.26,151.05128209]
[1755518443725,3.09,181.3,181.27,8.3731]
[1755518443926,3.09,181.3,181.28,2.86]
[1755518444536,3.09,181.31,181.27,2.86]
[1755518444732,4.02836414,181.3,181.27,2.86]
[1755518444935,3.09,181.29,181.27,2.86]
[1755518445133,3.09,181.28,181.27,2.86]
[1755518445734,6.18108578,181.41,181.27,2.86]
[1755518445938,8.62714207,181.4,181.28,2.86]
[1755518446139,4.02727166,181.39,181.28,2.86]
[1755518446440,4.02727166,181.38,181.28,2.86]
[1755518446638,4.02727166,181.37,181.31,5.512]
[1755518446838,4.5586172,181.4,181.32,2.86]
[1755518447040,4.5586172,181.4,181.32,2.89542357]
[1755518447535,4.5586172,181.43,181.33,2.86]
[1755518447739,3.09,181.41,181.33,2.86]
[1755518448338,3.09,181.41,181.34,2.86]
[1755518448540,3.09,181.41,181.35,0.03684589]
[1755518449742,3.09,181.41,181.35,2.89684589]
[1755518450340,3.09,181.41,181.35,0.03684589]
[1755518450536,3.09,181.39,181.35,0.03684589]
[1755518455741,4.35296414,181.38,181.35,0.03684589]
[1755518455942,2.99,181.36,181.35,0.03684589]
[1755518458546,2.99,181.36,181.35,2.99684589]
[1755518459637,2.99,181.36,181.35,0.03684589]
[1755518460747,7.71419793,181.36,181.35,0.03684589]
[1755518461944,7.71413739,181.36,181.35,0.03684589]
[1755518462541,7.71441966,181.36,181.35,0.03684589]
[1755518462742,2.99,181.36,181.35,0.03684589]
[1755518462946,7.71447154,181.36,181.35,0.03684589]
[1755518463651,2.99,181.35,181.3,2.96]
[1755518463945,2.99,181.33,181.27,2.96]
[1755518464250,2.99,181.31,181.27,2.96]
[1755518464448,2.99,181.3,181.27,2.96]
[1755518465048,3.02610445,181.3,181.27,2.96]
[1755518466354,0.03610445,181.3,181.27,2.96]
[1755518470351,50.91009068,181.33,181.27,2.96]
[1755518470550,137.76,181.34,181.28,4.5586172]
[1755518470750,137.76,181.34,181.29,2.96]
[1755518471554,140.75,181.34,181.29,2.96]
[1755518471757,137.76,181.34,181.3,5.5124]
[1755518471956,137.76,181.34,181.31,2.96]
[1755518472856,137.76,181.34,181.31,2.99733787]
[1755518473749,137.76,181.34,181.31,8.50943787]
[1755518473954,137.76,181.34,181.31,0.03733787]
[1755518474156,137.76,181.34,181.32,2.96]
[1755518476454,2.99,181.33,181.32,2.96]
[1755518476855,137.76,181.34,181.32,2.96]
[1755518477055,140.75,181.34,181.33,2.96]
[1755518480356,2.99,181.33,181.32,2.96]
[1755518481256,137.76,181.34,181.32,2.96]
[1755518485160,137.76,181.34,181.31,0.03733787]
[1755518485461,137.76,181.34,181.32,3.15]
[1755518486066,140.73,181.34,181.32,3.15]
[1755518487168,2.97,181.33,181.31,0.03733787]
[1755518487372,2.97,181.33,181.31,3.18733787]
[1755518488668,2.97,181.33,181.31,0.03733787]
[1755518491472,7.63002936,181.32,181.31,0.03733787]
[1755518491673,7.63053962,181.32,181.31,0.03733787]
[1755518494370,2.97,181.29,181.21,3.15]
[1755518494574,2.97,181.27,181.21,3.15]
[1755518495577,0.03950557,181.26,181.21,3.15]
[1755518495776,2.97,181.25,181.21,3.15]
[1755518497578,0.03950557,181.26,181.21,3.15]
[1755518498372,0.03950557,181.26,181.21,5.5151]
[1755518498570,0.03950557,181.26,181.22,3.15]
[1755518499078,2.97,181.25,181.22,3.15]
[1755518500083,3.00950557,181.26,181.22,3.15]
[1755518500578,3.00950557,181.26,181.18,5.516]
[1755518500579,2.97,181.25,181.17,4.5586172]
[1755518500879,2.97,181.25,181.18,3.15]
[1755518506087,3.00950557,181.26,181.18,3.15]
[1755518506381,3.00950557,181.26,181.19,5.5156]
[1755518506585,3.00950557,181.26,181.2,3.15]
[1755518508185,3.00950557,181.26,181.18,3.15]
[1755518508384,2.97,181.23,181.18,3.15]
[1755518508587,137.26,181.22,181.19,3.15]
[1755518508786,2.97,181.21,181.19,3.15]
[1755518509789,2.97,181.21,181.11,10.0766172]
[1755518510085,2.97,181.21,181.18,3.15]
[1755518510486,3.0085858,181.21,181.18,3.15]
[1755518510685,3.0085858,181.21,181.12,3.15]
[1755518511884,7.567203,181.21,181.12,3.15]
[1755518512089,2.97,181.2,181.12,3.15]
[1755518513783,2.97,181.2,181.08,4.5586172]
[1755518513989,2.97,181.2,181.09,3.0]
[1755518514379,2.97,181.2,181.11,3.0]
[1755518514582,2.89,181.15,181.11,3.0]
[1755518516692,0.03538339,181.16,181.11,3.0]
[1755518516993,2.92538339,181.16,181.11,3.0]
[1755518517192,0.03538339,181.16,181.11,7.5586172]
[1755518517394,67.45009068,181.28,181.11,7.5586172]
[1755518517395,2.89,181.24,181.14,4.5586172]
[1755518517595,2.89,181.24,181.17,3.0]
[1755518518682,2.89,181.24,181.19,0.0418814]
[1755518518888,2.89,181.23,181.2,3.0]
[1755518519890,137.12,181.26,181.2,3.0]
[1755518520096,2.89,181.25,181.2,3.0]
[1755518520492,137.12,181.26,181.2,3.0]
[1755518521293,137.12,181.26,181.22,3.0]
[1755518523297,137.12,181.26,181.22,8.5147]
[1755518523506,137.12,181.26,181.22,3.0]
[1755518524400,2.89,181.31,181.22,3.0]
[1755518524598,2.89,181.31,181.23,5.5145]
[1755518524799,2.89,181.31,181.24,3.0]
[1755518525103,2.89,181.31,181.25,0.03511172]
[1755518525502,2.89,181.31,181.27,3.0]
[1755518525695,2.89,181.31,181.25,0.03511172]
[1755518525896,2.89,181.3,181.26,3.0]
[1755518526195,2.89,181.34,181.27,3.0]
[1755518526499,2.89,181.34,181.29,3.0]
[1755518527007,2.89,181.34,181.3,0.04003453]
[1755518527502,2.89,181.34,181.32,3.0]
[1755518527803,2.89,181.34,181.33,3.0]
[1755518528003,2.89,181.34,181.3,0.04003453]
[1755518528004,2.89,181.36,181.3,0.04003453]
[1755518528203,2.89,181.35,181.34,3.0]
[1755518528799,137.06,181.37,181.35,3.0]
[1755518529005,137.06,181.37,181.34,3.0]
[1755518529200,139.95,181.37,181.34,3.0]
[1755518529799,139.95,181.37,181.34,3.03759362]
[1755518530005,137.06,181.37,181.35,3.0]
[1755518530199,2.89,181.36,181.34,0.03759362]
[1755518530403,2.89,181.35,181.34,3.03759362]
[1755518531305,139.95,181.37,181.34,3.03759362]
[1755518531704,2.89,181.35,181.34,3.03759362]
[1755518533301,139.95,181.37,181.36,3.0]
[1755518534499,137.06,181.37,181.36,3.0]
[1755518534698,139.95,181.37,181.36,3.0]
[1755518534901,137.06,181.37,181.35,3.0]
[1755518535805,2.89,181.38,181.35,3.0]
[1755518536906,2.93168828,181.38,181.35,3.0]
[1755518537609,2.93168828,181.38,181.34,0.03759362]
[1755518537805,2.93168828,181.38,181.34,3.03759362]
[1755518538005,2.93168828,181.38,181.35,3.0]
[1755518539706,0.04168828,181.38,181.35,3.0]
[1755518539906,2.93168828,181.38,181.34,3.03759362]
[1755518540607,2.89,181.37,181.34,3.03759362]
[1755518542805,3.04,181.37,181.34,3.05759362]
[1755518543006,0.04168828,181.38,181.35,3.02]
[1755518543206,3.04,181.36,181.35,3.02]
[1755518543807,0.04168828,181.38,181.35,3.02]
[1755518544007,3.04,181.37,181.36,3.02]
[1755518546713,0.04168828,181.38,181.37,3.02]
[1755518549622,3.08168828,181.38,181.37,3.02]
[1755518550520,0.04168828,181.38,181.37,3.02]
[1755518551217,3.08168828,181.38,181.37,3.02]
[1755518551823,0.04168828,181.38,181.37,3.02]
[1755518555125,3.04,181.43,181.37,3.02]
[1755518555916,3.04,181.46,181.38,4.5586172]
[1755518556117,3.04,181.51,181.42,3.02]
[1755518556319,136.68,181.5,181.42,3.02]
[1755518556520,3.04,181.49,181.42,3.02]
[1755518557027,3.04,181.49,181.44,0.03564198]
[1755518557325,3.04,181.49,181.45,3.02]
[1755518557827,3.04,181.49,181.46,3.02]
[1755518558831,3.04,181.49,181.45,3.02]
[1755518559830,136.68,181.5,181.45,3.02]
[1755518560832,3.04,181.52,181.46,3.02]
[1755518561535,139.82,181.53,181.46,3.02]
[1755518562339,139.82,181.53,181.48,0.03557819]
[1755518562537,3.04,181.51,181.5,3.02]
[1755518564374,3.04,181.51,181.48,3.05557819]
[1755518565136,3.04,181.5,181.48,3.05557819]
[1755518565537,136.78,181.53,181.48,3.05557819]
[1755518565538,3.04,181.49,181.48,3.05557819]
[1755518565739,3.04,181.49,181.48,0.03557819]
[1755518565931,139.9,181.49,181.48,0.03557819]
[1755518566936,144.52828889,181.49,181.48,0.03557819]
[1755518570635,144.52828889,181.49,181.48,3.05557819]
[1755518572743,139.9,181.49,181.48,0.03557819]
[1755518572948,144.53721989,181.49,181.48,0.03557819]
[1755518578244,139.9,181.49,181.48,0.03557819]
[1755518581644,136.86,181.49,181.48,2.99557819]
[1755518581846,139.93,181.49,181.48,2.99557819]
[1755518582842,139.93,181.49,181.48,0.03557819]
[1755518583542,144.5715064,181.49,181.48,0.03557819]
[1755518583748,3.07,181.46,181.38,2.96]
[1755518584050,3.07,181.44,181.38,2.96]
[1755518584246,3.07,181.42,181.38,2.96]
[1755518584445,136.9,181.43,181.38,2.96]
[1755518584849,3.07,181.42,181.38,2.96]
[1755518585042,3.07,181.42,181.39,0.03544617]
[1755518585242,3.07,181.42,181.4,2.96]
[1755518586447,136.93580271,181.43,181.4,2.96]
[1755518588443,0.03580271,181.43,181.4,2.96]
[1755518590547,3.07,181.42,181.4,2.96]
[1755518590749,3.07,181.41,181.4,2.96]
[1755518590947,136.92,181.41,181.4,2.96]
[1755518592746,136.92,181.41,181.39,0.03544617]
[1755518592747,136.92,181.41,181.39,2.99544617]
[1755518592940,3.07,181.4,181.39,2.99544617]
[1755518593345,3.07,181.4,181.39,0.03544617]
[1755518594448,3.07,181.4,181.39,2.99544617]
[1755518594948,136.92,181.41,181.39,2.99544617]
[1755518595154,139.99,181.41,181.4,2.96]
[1755518596943,3.07,181.4,181.39,0.03544617]
[1755518597454,136.92,181.41,181.39,0.03544617]
[1755518597755,139.99,181.41,181.4,2.96]
[1755518597952,136.92,181.41,181.4,2.96]
[1755518599157,0.03580271,181.43,181.4,2.96]
[1755518599456,136.83580271,181.43,181.4,2.96]
[1755518600554,139.90580271,181.43,181.4,2.96]
[1755518601253,136.83580271,181.43,181.4,2.96]
[1755518601558,139.90580271,181.43,181.4,2.96]
[1755518602552,3.13,181.42,181.4,3.13]
[1755518602858,3.13,181.42,181.39,0.03544617]
[1755518604755,3.13,181.41,181.4,3.13]
[1755518604961,3.13,181.41,181.39,0.03544617]
[1755518604962,3.13,181.42,181.41,3.13]
[1755518605147,136.72,181.42,181.41,3.13]
[1755518607156,139.85,181.42,181.41,3.13]
[1755518608056,136.72,181.42,181.39,3.16544617]
[1755518608262,3.13,181.41,181.39,0.03544617]
[1755518609658,3.13,181.4,181.39,0.03544617]
[1755518610254,7.76595944,181.4,181.39,0.03544617]
[1755518610459,7.76537303,181.4,181.39,0.03544617]
[1755518612759,3.13,181.39,181.32,3.13]
[1755518612959,3.13,181.39,181.22,9.20990655]
[1755518612960,3.13,181.36,181.26,3.13]
[1755518613165,3.13,181.33,181.26,3.13]
[1755518613368,3.13,181.31,181.26,3.13]
[1755518613759,3.13,181.3,181.26,3.13]
[1755518615963,136.7,181.32,181.22,3.13]
[1755518615964,7.6886172,181.31,181.22,3.13]
[1755518616156,3.13,181.3,181.22,3.13]
[1755518616856,136.72,181.29,181.22,3.13]
[1755518617171,3.13,181.35,181.24,3.13]
[1755518617463,136.72,181.34,181.27,3.13]
[1755518618266,3.13,181.35,181.2,4.5586172]
[1755518618267,136.98,181.38,181.3,3.13]
[1755518618769,140.11,181.38,181.3,3.13]
[1755518620570,136.98,181.38,181.3,3.13]
[1755518620763,137.12,181.4,181.33,3.13]
[1755518621066,3.13,181.45,181.33,3.13]
[1755518621268,107.70210366,181.51,181.36,3.13]
[1755518621269,137.2,181.41,181.36,3.13]
[1755518621667,3.13,181.45,181.38,4.5586172]
[1755518621867,3.13,181.45,181.39,3.13]
[1755518622068,0.03879635,181.43,181.39,3.13]
[1755518623368,3.13,181.5,181.42,3.13]
[1755518624472,3.13,181.5,181.44,0.03954924]
[1755518624672,3.13,181.5,181.44,3.16954924]
[1755518625072,3.13,181.5,181.44,0.03954924]
[1755518625774,3.13,181.5,181.44,3.16954924]
[1755518627766,137.04,181.49,181.44,3.16954924]
[1755518627973,3.13,181.48,181.44,3.16954924]
[1755518628571,3.13,181.48,181.45,3.13]
[1755518628780,140.17,181.49,181.45,3.13]
[1755518629671,3.13,181.48,181.44,0.03954924]
[1755518629871,3.13,181.48,181.45,3.13]
[1755518630073,3.13,181.48,181.44,0.03954924]
[1755518630273,3.13,181.48,181.47,3.13]
[1755518630977,137.18,181.5,181.45,3.13]
[1755518631476,3.13,181.48,181.44,0.03954924]
[1755518631677,3.13,181.49,181.45,3.13]
[1755518632081,3.13,181.49,181.46,3.13]
[1755518632268,3.08,181.48,181.47,2.96]
[1755518633474,3.08,181.48,181.45,2.96]
[1755518633675,3.08,181.47,181.45,2.96]
[1755518633872,3.08,181.49,181.44,0.03954924]
[1755518634071,140.26,181.5,181.45,2.96]
[1755518634276,3.08,181.5,181.45,2.96]
[1755518634477,140.96,181.49,181.45,2.96]
[1755518634671,140.96,181.49,181.44,0.03954924]
[1755518634672,3.08,181.48,181.44,0.03954924]
[1755518635180,3.08,181.47,181.46,2.96]
[1755518635486,137.88,181.49,181.44,0.03954924]
[1755518635681,3.08,181.46,181.45,2.96]
[1755518637281,137.88,181.49,181.45,2.96]
[1755518637484,3.08,181.48,181.45,2.96]
[1755518638381,3.08,181.5,181.45,2.96]
[1755518638579,137.82,181.49,181.45,2.96]
[1755518638783,140.9,181.49,181.45,2.96]
[1755518639081,3.08,181.48,181.45,2.96]
[1755518639877,137.82,181.49,181.45,2.96]
[1755518640183,137.76,181.51,181.45,2.96]
[1755518640683,3.08,181.5,181.45,2.96]
[1755518640886,137.76,181.51,181.45,2.96]
[1755518641779,3.08,181.5,181.45,2.96]
[1755518641983,3.08,181.49,181.45,2.96]
[1755518642489,140.84,181.51,181.45,2.96]
[1755518642686,137.76,181.51,181.45,2.96]
[1755518642985,3.08,181.5,181.45,2.96]
[1755518643486,3.08,181.49,181.45,2.96]
[1755518643981,3.08,181.5,181.45,2.96]
[1755518644179,3.08,181.49,181.45,2.96]
[1755518644588,3.08,181.5,181.45,2.96]
[1755518644882,3.08,181.5,181.46,2.96]
[1755518645285,3.08,181.5,181.44,0.03954924]
[1755518645687,3.08,181.49,181.48,2.96]
[1755518647084,137.76,181.51,181.48,2.96]
[1755518647291,140.84,181.51,181.48,2.96]
[1755518647491,137.76,181.51,181.47,0.0368159]
[1755518647687,3.08,181.5,181.49,2.96]
[1755518647892,3.08,181.5,181.47,0.0368159]
[1755518648391,3.08,181.5,181.47,2.9968159]
[1755518648586,3.08,181.49,181.48,2.96]
[1755518650092,3.08,181.5,181.47,2.9968159]
[1755518650791,3.08,181.5,181.48,2.96]
[1755518651089,3.08,181.5,181.47,0.0368159]
[1755518651292,3.08,181.48,181.47,0.0368159]
[1755518654987,3.64,181.48,181.33,4.55214919]
[1755518655292,3.08,181.44,181.4,2.96]
[1755518655488,137.88,181.43,181.4,2.96]
[1755518655698,3.08,181.42,181.4,2.96]
[1755518656692,3.08,181.41,181.33,2.96]
[1755518657194,3.08,181.38,181.33,2.96]
[1755518657390,3.08,181.36,181.33,2.96]
[1755518657986,3.08,181.35,181.34,2.96]
[1755518658384,3.08,181.35,181.25,4.55214919]
[1755518658591,3.08,181.35,181.26,2.96]
[1755518658794,3.08,181.32,181.26,2.96]
[1755518659094,137.96,181.31,181.26,2.96]
[1755518659289,3.08,181.3,181.26,2.96]
[1755518660587,3.08,181.29,181.26,2.96]
[1755518661192,3.08,181.28,181.27,2.96]
[1755518661793,3.08,181.28,181.19,2.96]
[1755518661990,4.55214919,181.26,181.19,2.96]
[1755518662196,141.1,181.25,181.19,2.96]
[1755518662395,3.08,181.23,181.19,2.96]
[1755518662898,3.08,181.23,181.18,243.810283]
[1755518662899,138.05578037,181.25,181.21,2.89]
[1755518663397,141.13578037,181.25,181.21,2.89]
[1755518663894,138.05578037,181.25,181.21,2.89]
[1755518664498,0.03578037,181.25,181.21,2.89]
[1755518668003,3.11578037,181.25,181.21,2.89]
[1755518668298,3.08,181.23,181.22,2.89]
[1755518668492,3.08,181.24,181.2,2.92673591]
[1755518669088,3.08,181.24,181.2,0.03673591]
[1755518669287,3.08,181.23,181.22,2.89]
[1755518669995,3.08,181.23,181.2,2.92673591]
[1755518670196,3.08,181.23,181.2,0.03673591]
[1755518670699,3.08,181.23,181.21,2.89]
[1755518671194,0.03578037,181.25,181.21,2.89]
[1755518671395,3.08,181.22,181.2,0.03673591]
[1755518672695,0.03578037,181.25,181.2,0.03673591]
[1755518672999,3.08,181.24,181.2,2.92673591]
[1755518674801,3.08,181.24,181.21,2.89]
[1755518675304,3.08,181.24,181.2,0.03673591]
[1755518675601,3.11578037,181.25,181.24,2.89]
[1755518676097,3.08,181.23,181.22,2.89]
[1755518677301,3.08,181.24,181.23,2.89]
[1755518679302,0.03578037,181.25,181.2,0.03673591]
[1755518679508,3.11578037,181.25,181.24,2.89]
[1755518679707,0.03578037,181.25,181.24,2.89]
[1755518689119,0.03578037,181.25,181.21,2.89]
[1755518689516,3.11578037,181.25,181.21,2.89]
[1755518689714,3.08,181.24,181.21,2.89]
[1755518690722,3.08,181.23,181.21,2.89]
[1755518690922,3.08,181.23,181.22,2.89]
[1755518691325,3.08,181.23,181.2,2.92673591]
[1755518692221,3.09,181.24,181.21,3.04]
[1755518693025,3.09,181.23,181.22,3.04]
[1755518694819,137.97578037,181.25,181.22,3.04]
[1755518695026,141.06578037,181.25,181.22,3.04]
[1755518695223,3.09,181.24,181.23,3.04]
[1755518697422,137.97578037,181.25,181.23,3.04]
[1755518698828,0.03578037,181.25,181.23,3.04]
[1755518700528,0.03578037,181.25,181.24,3.04]
[1755518700726,3.12578037,181.25,181.24,3.04]
[1755518700926,3.09,181.24,181.21,3.04]
[1755518701127,0.03578037,181.25,181.22,3.04]
[1755518701335,3.09,181.24,181.21,3.04]
[1755518702129,3.09,181.24,181.22,3.04]
[1755518702327,3.09,181.23,181.22,3.04]
[1755518702524,3.12578037,181.25,181.22,3.04]
[1755518702828,0.03578037,181.25,181.22,3.04]
[1755518703124,3.09,181.24,181.23,3.04]
[1755518703524,3.09,181.24,181.21,3.04]
[1755518703925,3.09,181.23,181.21,3.04]
[1755518704631,3.09,181.23,181.22,3.04]
[1755518705633,3.09,181.23,181.2,3.07673591]
[1755518705930,3.09,181.22,181.21,3.04]
[1755518706832,3.09,181.21,181.2,3.07673591]
[1755518707729,3.09,181.21,181.2,0.03673591]
[1755518707935,3.09,181.24,181.2,0.03673591]
[1755518708137,3.09,181.22,181.2,0.03673591]
[1755518708636,7.73905026,181.21,181.2,0.03673591]
[1755518708836,3.09,181.2,181.14,3.04]
[1755518709532,4.5620076,181.19,181.12,152.13411052]
[1755518709741,3.09,181.17,181.1,3.04]
[1755518709937,3.09,181.17,181.1,7.6020076]
[1755518710136,0.03698925,181.17,181.11,3.04]
[1755518710631,3.09,181.17,181.11,3.04]
[1755518710831,0.03776939,181.16,181.11,3.04]
[1755518713040,3.12776939,181.16,181.11,3.04]
[1755518713639,3.09,181.15,181.11,3.04]
[1755518716242,3.12776939,181.16,181.11,3.04]
[1755518719040,0.03776939,181.16,181.11,3.04]
[1755518719240,3.09,181.21,181.12,3.04]
[1755518719641,3.09,181.21,181.13,5.5173]
[1755518719839,3.09,181.21,181.14,3.04]
[1755518724941,3.16,181.23,181.15,5.5167]
[1755518725146,3.16,181.23,181.16,2.92]
[1755518725646,508.12,181.25,181.1,13.24926582]
[1755518725647,140.64,181.25,181.19,2.92]
[1755518725946,0.0380772,181.21,181.19,2.92]
[1755518726740,0.0380772,181.21,181.2,5.5152]
[1755518726940,3.16,181.26,181.2,8.4352]
[1755518727140,3.16,181.26,181.21,2.92]
[1755518727541,3.16,181.24,181.21,2.92]
[1755518728242,3.16,181.24,181.21,2.95635683]
[1755518728837,3.16,181.25,181.21,2.95635683]
[1755518729144,137.76,181.3,181.21,2.95635683]
[1755518729339,3.16,181.27,181.21,2.95635683]
[1755518730238,3.16,181.27,181.21,0.03635683]
[1755518731248,3.16,181.27,181.21,2.95635683]
[1755518733542,3.16,181.27,181.21,0.03635683]
[1755518733848,3.16,181.27,181.23,2.92]
[1755518734146,3.16,181.27,181.24,2.92]
[1755518734547,3.16,181.26,181.24,2.92]
[1755518734851,3.16,181.25,181.24,2.92]
[1755518735347,3.16,181.27,181.24,2.92]